[Event "Sardinia World Festival-A 2024"]
[Site "Orosei"]
[Date "2024.04.27"]
[Round "1.20"]
[White "Vincenti, Leonardo"]
[Black "Parkhov, Yair"]
[Result "0-1"]
[ECO "B53"]
[WhiteElo "2209"]
[BlackElo "2513"]
[Annotator "TA"]
[PlyCount "144"]
[EventDate "2024.04.26"]
[EventType "swiss"]
[EventCountry "ITA"]
[SourceTitle "playchess.com"]
[Source "ChessBase"]
[SourceQuality "1"]
[TimeControl "40/5400+30:1800+30"]

{[%evp 24,144,41,43,50,45,51,33,47,0,0,0,0,0,0,0,0,-20,-25,-53,-45,-48,-52,-46,-57,-54,-54,-47,-45,-49,-49,-55,-55,-47,-43,-50,-52,-58,-15,-16,-25,-22,0,-57,-41,-52,-59,-93,-84,-88,-72,-75,-74,-84,-84,-84,-59,-38,-51,-70,-40,-40,0,-8,0,-31,-31,-43,0,-16,0,0,0,0,0,0,0,0,0,0,0,0,0,0,0,0,0,0,0,0,0,-8,0,-8,-8,-8,-8,-8,-8,-29974,-29975,-29974,-29975,-29978,-29979,-29979,-29979,-29981,-29982,-29982,-29983,-29985,-29986,-29986,-29986,-29987,-29988,-29988,-29989,-29989,-29990,-29990,-29991]} 1. e4 {[%emt 0:00:01]} c5 {[%emt 0:00:03]} 2. Nf3 {[%emt 0:00:05]} d6 {[%emt 0:00:06]} 3. d4 {[%emt 0:01:04]} cxd4 {[%emt 0:00:04]} 4. Qxd4 {[%emt 0:00:06]} Nc6 {[%emt 0:00:24]} 5. Bb5 {[%emt 0:01:48]} Bd7 {[%emt 0:00:10]} 6. Qd3 {[%emt 0:00:16]} g6 {[%emt 0:13:30]} 7. O-O {[%emt 0:01:01]} Bg7 {[%emt 0:02:49]} 8. c4 {[%emt 0:00:50]} Nf6 {[%emt 0:00:25]} 9. Nc3 {[%emt 0:00:26]} O-O {[%emt 0:00:23]} 10. Bxc6 {[%emt 0:08:27]} Bxc6 {[%emt 0:01:53]} 11. Nd4 {[%emt 0:02:20]} Bd7 {[%emt 0:19:15] B53: Sicilian: 2...d6: Lines with Qxd4.} 12. h3 {[%emt 0:03:11]} Rc8 {[%emt 0:11:54]} 13. Be3 {[%emt 0:01:43]} a6 {[%emt 0:01:57]} 14. Rac1 {[%emt 0:03:38]} Qa5 {[%emt 0:02:04]} 15. a3 {[%emt 0:07:22]} Qh5 {[%emt 0:11:44]} 16. Nde2 $146 {[%emt 0:18:26]} (16. Rfd1 $14) ({Predecessor:} 16. Nd5 Nxd5 17. cxd5 Be5 18. f4 Bg7 19. Rxc8 Rxc8 20. Rc1 Rxc1+ 21. Bxc1 e5 22. Nf3 {0-1 Szente Varga,F (2085)-Rodchenkov,S (2346) Titled Tuesday intern op 25th Oct Early blitz 2022 (7)}) 16... b5 $11 {[%emt 0:04:13]} 17. cxb5 {[%emt 0:07:24]} Bxb5 {[%emt 0:00:35]} 18. Nxb5 {[%emt 0:00:08]} Qxb5 {[%emt 0:00:07]} 19. Qxb5 {[%emt 0:00:11]} axb5 {[%emt 0:00:04]} 20. Nc3 {[%emt 0:17:19]} Rb8 {[%emt 0:03:16]} 21. Bd4 {[%emt 0:06:47]} b4 {[%emt 0:15:42]} 22. Nd5 {[%emt 0:03:29]} Nxd5 {[%emt 0:01:37]} 23. Bxg7 {[%emt 0:00:02]} Kxg7 {[%emt 0:00:17]} 24. exd5 {[%emt 0:00:10]} bxa3 {[%emt 0:00:05]} 25. bxa3 {[%emt 0:00:07]} Rb5 {[%emt 0:00:28]} 26. Rc7 {[%emt 0:02:18]} Kf6 {[%emt 0:03:12]} 27. Rd1 {[%emt 0:00:01]} Rfb8 {[%emt 0:00:51]} 28. Re1 {[%emt 0:06:27]} Re8 {[%emt 0:01:43]} ({Reject} 28... Rxd5 29. Rexe7 Rf8 30. Red7 $11) 29. Rd1 $1 {[%emt 0:00:03]} Rc5 {[%emt 0:02:09]} 30. Rd7 {[%emt 0:04:29]} Rc2 {[%emt 0:00:23]} 31. Rd3 {[%emt 0:01:34]} Rc1+ {[%emt 0:01:00]} 32. Kh2 {[%emt 0:00:05]} Re1 {[%emt 0:00:05]} 33. a4 {[%emt 0:02:06]} ({White should try} 33. Ra7 $11) 33... Ra8 $15 {[%emt 0:00:19]} 34. Rd4 {[%emt 0:02:02]} Ra5 {[%emt 0:01:42]} 35. Rf4+ {[%emt 0:00:13]} Kg7 {[%emt 0:00:19]} 36. Rd4 {[%emt 0:00:01]} f5 {[%emt 0:01:22]} 37. g4 {[%emt 0:02:22]} Kf6 {[%emt 0:00:41]} 38. gxf5 {[%emt 0:00:53]} gxf5 {[%emt 0:00:28]} 39. Rb7 {[%emt 0:00:31]} Re4 {[%emt 0:00:33]} 40. Rxe4 {[%emt 0:00:28]} fxe4 {[%emt 0:00:05]} 41. Rb4 {[%emt 0:30:29]} Ke5 {[%emt 0:30:19]} 42. Rb7 {[%emt 0:00:33]} Kf6 {[%emt 0:01:36]} 43. Rb4 {[%emt 0:00:08]} Ke5 {[%emt 0:00:00]} 44. Rb7 {[%emt 0:00:00]} Kxd5 {[%emt 0:00:00]} 45. Rxe7 {[%emt 0:00:00]} h5 {[%emt 0:00:00]} 46. Kg2 {[%emt 0:00:00]} Rxa4 {[%emt 0:00:00]} 47. Rh7 {[%emt 0:00:00]} Kc4 {[%emt 0:00:00]} 48. Rxh5 {[%emt 0:00:00]} d5 {[%emt 0:00:00]} 49. Re5 {[%emt 0:00:00]} Kd4 {[%emt 0:00:00]} 50. Rf5 {[%emt 0:00:00]} Ra8 {[%emt 0:00:00]} 51. h4 {[%emt 0:00:00]} Kc4 {[%emt 0:00:00]} 52. Re5 {[%emt 0:00:00]} Rg8+ {[%emt 0:00:00]} 53. Kf1 {[%emt 0:00:00]} Rg4 {[%emt 0:01:37]} 54. h5 {[%emt 0:00:00]} d4 {[%emt 0:00:59]} 55. Ke2 {[%emt 0:05:58]} Rh4 {[%emt 0:00:31]} 56. Re8 {[%emt 0:00:31]} Rxh5 {[%emt 0:03:04]} 57. Rxe4 {[%emt 0:00:08]} Ra5 {[%emt 0:01:48]} 58. Re8 {[%emt 0:01:16]} Ra2+ {[%emt 0:00:15]} 59. Kf3 {[%emt 0:00:26]} d3 {[%emt 0:00:08]} 60. Rc8+ {[%emt 0:00:07]} Kd4 {[%emt 0:00:08]} 61. Kg3 $2 {[%emt 0:00:57][%mdl 8192]} (61. Rd8+ $11 Kc3 62. Rc8+ Kd2 63. Ke4) 61... d2 {[%emt 0:01:12]} 62. Rd8+ {[%emt 0:00:18]} Kc3 {[%emt 0:00:04]} 63. f4 {[%emt 0:00:37]} Ra1 {[%emt 0:00:50]} 64. Rc8+ {[%emt 0:00:16]} Kb4 {[%emt 0:00:32]} 65. Rd8 {[%emt 0:00:14]} d1=Q {[%emt 0:00:06]} 66. Rxd1 {[%emt 0:00:02]} Rxd1 {[%emt 0:00:07]} 67. Kg4 {[%emt 0:00:02]} Kc5 {[%emt 0:00:07]} 68. Kg5 {[%emt 0:00:04]} Kd6 {[%emt 0:00:06]} 69. Kf6 {[%emt 0:00:03]} Rf1 {[%emt 0:00:23]} 70. f5 {[%emt 0:00:01]} Rf2 {[%emt 0:00:09]} 71. Kg6 {[%emt 0:00:04]} Ke5 {[%emt 0:00:06]} 72. f6 {[%emt 0:00:04]} Rxf6+ {[%emt 0:00:04]} 0-1

[Event "Sardinia World Festival-A 2024"]
[Site "Orosei"]
[Date "2024.04.27"]
[Round "1.21"]
[White "Mikhalevski, Victor"]
[Black "Roesch, Mario"]
[Result "1-0"]
[ECO "A05"]
[WhiteElo "2506"]
[BlackElo "2207"]
[Annotator "TA"]
[PlyCount "75"]
[EventDate "2024.04.26"]
[EventType "swiss"]
[EventCountry "ITA"]
[SourceTitle "playchess.com"]
[Source "ChessBase"]
[SourceQuality "1"]
[TimeControl "40/5400+30:1800+30"]

{[%evp 9,75,-21,-30,-31,-26,-17,-22,-32,-22,-31,-31,-39,-14,-41,6,14,14,24,31,25,26,13,23,25,75,75,177,140,132,144,180,181,187,191,231,215,223,210,286,282,282,275,297,281,419,289,349,333,351,345,501,343,370,372,372,358,358,312,390,363,1178,1114,2046,1944,2045,1944,1391,425]} 1. Nf3 {[%emt 0:00:05]} Nf6 {[%emt 0:00:06]} 2. g3 {[%emt 0:00:05]} g6 {[%emt 0:00:35]} 3. b3 {[%emt 0:00:11]} d5 {[%emt 0:00:33]} 4. Bb2 {[%emt 0:03:11]} c5 {[%emt 0:00:17]} 5. c4 {[%emt 0:03:41]} d4 {[%emt 0:00:27]} 6. e3 {[%emt 0:00:10]} Nc6 {[%emt 0:02:53]} 7. exd4 {[%emt 0:00:17]} cxd4 {[%emt 0:00:29]} 8. Bg2 {[%emt 0:00:16][%cal Ob3b4] The position is equal.} Bg7 {[%emt 0:00:20]} 9. O-O {[%emt 0:00:10][%cal Ob3b4]} O-O {[%emt 0:01:38]} 10. Re1 {[%emt 0:00:39]} Nd7 {[%emt 0:02:03]} 11. d3 {[%emt 0:03:13]} Nc5 {[%emt 0:03:09]} (11... a5 $15) 12. Ba3 $11 {[%emt 0:01:32]} Qb6 {[%emt 0:02:46]} 13. Bxc5 $1 {[%emt 0:05:10]} Qxc5 {[%emt 0:00:04]} 14. a3 {[%emt 0:00:08]} Qh5 {[%emt 0:06:28]} 15. b4 {[%emt 0:02:46][%cal Bb3b4,Bb4b5][%mdl 32]} Bg4 {[%emt 0:12:51]} 16. Nbd2 {[%emt 0:01:49]} Bh6 {[%emt 0:10:06]} (16... e5 $11 {keeps the balance.}) 17. Qb3 {[%emt 0:28:37]} f6 {[%emt 0:08:09]} (17... Rae8 $16) 18. c5+ {[%emt 0:16:17]} Kh8 {[%emt 0:00:46]} 19. b5 {[%emt 0:00:08]} Ne5 {[%emt 0:03:09]} 20. Nxe5 {[%emt 0:00:13]} (20. Nxd4 $2 {loses.} Bxd2 21. Re4 Rad8 $19) 20... fxe5 {[%emt 0:08:33] [#]} 21. Ne4 {[%emt 0:00:23]} Bf3 {[%emt 0:15:46]} 22. Bxf3 {[%emt 0:03:04]} Qxf3 {[%emt 0:00:43]} 23. Ra2 {[%emt 0:02:30][%cal Ba1a2,Ba2c2,Bc2c4,Bc4a4][%mdl 32]} Qf7 {[%emt 0:02:54]} 24. Qxf7 {[%emt 0:00:32]} Rxf7 {[%emt 0:00:04]} 25. Rc2 {[%emt 0:00:15]} Rc8 {[%emt 0:00:37]} 26. Rc4 {[%emt 0:00:55] Threatens to win with Ra4.} Rf3 {[%emt 0:05:32]} (26... Rff8 $142 27. a4 Kg7) 27. Rd1 {[%emt 0:02:51] Ra4 is the strong threat.} Rc7 {[%emt 0:01:10]} 28. Ra4 {[%emt 0:01:11]} b6 {[%emt 0:00:22]} 29. c6 {[%emt 0:00:16]} a5 {[%emt 0:06:23]} (29... e6 $142 30. Ra6 Bg7) 30. Rc4 {[%emt 0:03:33]} Rf8 {[%emt 0:00:41]} 31. Kg2 {[%emt 0:00:18]} Kg8 {[%emt 0:00:35]} 32. a4 {[%emt 0:01:01]} Kf7 {[%emt 0:01:29]} 33. Re1 {[%emt 0:00:07]} Ke6 {[%emt 0:01:17]} 34. f4 {[%emt 0:02:14]} Kd5 $2 {[%emt 0:00:24] [#] Black is weak on the light squares} (34... Rf5 35. Nd2 Kf7) 35. Nc3+ $1 $18 {[%emt 0:00:20][%mdl 512] White is clearly winning.} Kd6 {[%emt 0:01:17]} (35... Ke6 36. Rxe5+) 36. Rxe5 {[%emt 0:00:44][%cal Rc4d4]} Bxf4 {[%emt 0:03:15]} 37. gxf4 {[%emt 0:00:24]} (37. Rxd4+ Kxe5 38. Re4+ Kd6 39. gxf4 e6 $18) 37... Rxf4 {[%emt 0:00:20]} 38. Rd5+ {[%emt 0:00:31] Weighted Error Value: White=0.15 (very precise) /Black=0.39.  Mistake:       	---       	Black=6      Inaccurate:     	White=2     	Black=2      OK:         	White=16    	Black=4      Best:        	White=2     	Black=1      Strong:       	White=1     	---        Brilliant:      	White=1     	---} 1-0

[Event "Sardinia World Festival-A 2024"]
[Site "Orosei"]
[Date "2024.04.27"]
[Round "1.22"]
[White "Kairbekova, Amina"]
[Black "Rozen, Eytan"]
[Result "0-1"]
[ECO "B40"]
[WhiteElo "2204"]
[BlackElo "2499"]
[Annotator "TA"]
[PlyCount "106"]
[EventDate "2024.04.26"]
[EventType "swiss"]
[EventCountry "ITA"]
[SourceTitle "playchess.com"]
[Source "ChessBase"]
[SourceQuality "1"]
[TimeControl "40/5400+30:1800+30"]

{[%evp 14,106,47,35,47,39,36,36,45,48,53,43,52,14,20,13,19,17,21,0,0,0,0,-71,-71,-82,-72,-88,-54,-91,-85,-86,-79,-85,-78,-136,-79,-189,-208,-230,-231,-276,-278,-276,-251,-262,-248,-286,-290,-376,-379,-366,-333,-359,-358,-350,-300,-325,-303,-431,-376,-426,-411,-414,-312,-389,-389,-518,-535,-527,-388,-525,-562,-566,-560,-547,-472,-1129,-1090,-1002,-896,-4139,-1391,-5517,-5188,-7025,-6079,-1974,-1539,-29970,-29970,-29972,-29973,-29973,-29974]} 1. e4 {[%emt 0:00:03]} c5 {[%emt 0:00:23]} 2. Nf3 {[%emt 0:00:07]} d6 {[%emt 0:00:32]} 3. d4 {[%emt 0:00:06]} Nf6 {[%emt 0:00:56]} 4. Bd3 {[%emt 0:03:04]} cxd4 {[%emt 0:01:25]} 5. Nxd4 {[%emt 0:00:05]} e6 {[%emt 0:06:04]} 6. c4 {[%emt 0:00:17]} Be7 {[%emt 0:00:13]} 7. Nc3 {[%emt 0:00:37]} O-O {[%emt 0:01:18]} 8. O-O {[%emt 0:04:23]} Bd7 {[%emt 0:03:33]} 9. Be3 {[%emt 0:02:37]} Nc6 {[%emt 0:00:11]} 10. Be2 {[%emt 0:00:37]} Nxd4 {[%emt 0:05:03] White is slightly better.} 11. Bxd4 {[%emt 0:03:30]} Bc6 {[%emt 0:02:06]} 12. Qd3 {[%emt 0:08:35]} Rc8 {[%emt 0:07:28]} 13. f4 {[%emt 0:03:55][%cal Od3g3]} (13. Bxa7 b6 14. e5 dxe5 15. Qxd8 Rcxd8 $11 (15... Bxd8 16. a4 $11)) 13... a6 {[%emt 0:03:15][%cal Ob7b5]} 14. Qe3 {[%emt 0:10:34]} Nd7 {[%emt 0:04:33]} 15. Rad1 {[%emt 0:10:53]} Qa5 {[%emt 0:05:05]} 16. Nd5 {[%emt 0:04:46]} exd5 {[%emt 0:03:01]} 17. exd5 {[%emt 0:00:16]} Ba4 {[%emt 0:01:43]} 18. b3 {[%emt 0:03:59]} (18. Qxe7 $11 Rfe8 (18... Bxd1 19. Rxd1 Qc7 20. Qg5 $14) 19. Qg5) 18... Bf6 $17 {[%emt 0:03:32]} 19. bxa4 {[%emt 0:10:34]} Rce8 {[%emt 0:06:23]} 20. Qf2 {[%emt 0:01:32]} Qxa4 {[%emt 0:02:36]} 21. Bd3 {[%emt 0:00:39]} Bxd4 {[%emt 0:01:37]} 22. Qxd4 {[%emt 0:00:07]} Nc5 {[%emt 0:00:25][%cal Bd7c5,Bc5e4,Be4c3][%mdl 32]} (22... Qxa2 $2 23. Ra1 $18) 23. Bb1 {[%emt 0:01:23]} Re2 {[%emt 0:05:02]} 24. Qc3 {[%emt 0:14:36]} (24. Rd3 $142) 24... h6 {[%emt 0:08:51]} (24... Rfe8 $142 25. Qh3 h6 (25... Qxc4 26. Qxh7+ Kf8 27. Qh8+ Ke7 28. Qxg7 $18)) 25. Qh3 {[%emt 0:12:02]} (25. Rc1 $17) 25... Qxc4 $19 {[%emt 0:02:10]} 26. Qf5 {[%emt 0:00:12]} g6 {[%emt 0:06:32] Active counter play!} 27. Qf6 {[%emt 0:00:26]} Ne4 {[%emt 0:00:25]} 28. Qd4 {[%emt 0:02:57]} Qxd4+ {[%emt 0:01:23]} 29. Rxd4 {[%emt 0:00:06]} Nc3 {[%emt 0:01:21][%cal Oe2b2]} 30. a3 {[%emt 0:00:06]} Rc8 {[%emt 0:01:41]} 31. Bd3 {[%emt 0:01:25]} Rd2 {[%emt 0:01:20] ...Ne2+ is the strong threat.} 32. Rc4 {[%emt 0:00:22]} Rxc4 {[%emt 0:00:09]} 33. Bxc4 {[%emt 0:00:04][%mdl 4096] Endgame. KRB-KRN} b5 {[%emt 0:01:29]} 34. Rc1 {[%emt 0:00:21]} Rd1+ {[%emt 0:01:05]} ({Don't do} 34... bxc4 35. Rxc3 Rd4 (35... Rxd5 36. Rxc4 Kg7 37. Kf2 $17) 36. Kf2) 35. Rxd1 {[%emt 0:00:06]} Nxd1 {[%emt 0:00:05] KB-KN} 36. Bb3 {[%emt 0:00:08]} (36. Bd3 {might work better.}) 36... Nc3 {[%emt 0:00:10]} 37. Kf2 {[%emt 0:00:08]} a5 {[%emt 0:03:16]} 38. Ke3 {[%emt 0:01:37]} a4 {[%emt 0:00:27]} 39. Kd3 {[%emt 0:00:06]} Nb1 {[%emt 0:00:18]} 40. Ba2 {[%emt 0:00:48]} Nxa3 {[%emt 0:00:12] [#] Hoping for ...b4.} 41. Kc3 {[%emt 0:30:05]} Kf8 {[%emt 0:31:42]} 42. Kb4 {[%emt 0:01:37]} Nc2+ {[%emt 0:00:08]} 43. Kxb5 {[%emt 0:00:04]} Ne3 {[%emt 0:00:20]} 44. g3 {[%emt 0:00:53]} a3 {[%emt 0:00:15] [#] aiming for ...Nf1.} 45. h3 {[%emt 0:01:36]} (45. Ka4 $142 Nf1 (45... Nc2 $2 46. Kb3 $19) 46. Kxa3) 45... h5 {[%emt 0:02:34]} 46. Kb4 {[%emt 0:00:06]} Nf5 {[%emt 0:00:44]} 47. g4 {[%emt 0:00:33]} hxg4 {[%emt 0:00:06]} 48. hxg4 {[%emt 0:00:05]} Ne3 {[%emt 0:00:05]} 49. Kxa3 {[%emt 0:00:46]} Nxg4 {[%emt 0:00:06]} 50. Bb1 {[%emt 0:01:01]} Nf6 {[%emt 0:00:39]} 51. f5 {[%emt 0:00:19]} g5 {[%emt 0:00:23] Black mates.} (51... Nxd5 52. fxg6 f6 53. Kb3 $19) 52. Kb3 {[%emt 0:00:30]} g4 {[%emt 0:00:23]} 53. Bd3 {[%emt 0:00:05]} g3 {[%emt 0:00:11] Weighted Error Value: White=0.74/Black=0.15 (very precise) .  Mistake:       	White=5     	Black=1      Inaccurate:     	White=4     	Black=1      OK:         	White=11    	Black=23     Best:        	White=1     	Black=4} 0-1

[Event "Sardinia World Festival-A 2024"]
[Site "Orosei"]
[Date "2024.04.27"]
[Round "1.23"]
[White "Sokolovsky, Yahli"]
[Black "Balinski, Damian"]
[Result "1-0"]
[ECO "C42"]
[WhiteElo "2490"]
[BlackElo "2204"]
[Annotator "TA"]
[PlyCount "93"]
[EventDate "2024.04.26"]
[EventType "swiss"]
[EventCountry "ITA"]
[SourceTitle "playchess.com"]
[Source "ChessBase"]
[SourceQuality "1"]
[TimeControl "40/5400+30:1800+30"]

{[%evp 15,93,31,29,34,28,16,29,21,30,29,54,50,64,57,61,0,9,18,22,0,0,0,0,0,0,0,0,0,0,0,0,0,0,0,35,48,43,36,40,33,115,-54,-11,-877,29992,114,108,68,70,33,174,32,182,183,267,260,442,380,500,154,146,97,155,114,241,200,589,556,29971,29963,29981,29982,29982,29983,29983,668,29984,29985,29986,29987]} 1. e4 {[%emt 0:00:04]} e5 {[%emt 0:00:03]} 2. Nf3 {[%emt 0:00:05]} Nf6 {[%emt 0:00:07]} 3. Nxe5 {[%emt 0:00:05]} d6 {[%emt 0:00:11]} 4. Nf3 {[%emt 0:00:05]} Nxe4 {[%emt 0:00:07]} 5. Nc3 {[%emt 0:00:04]} Nxc3 {[%emt 0:00:09]} 6. dxc3 {[%emt 0:00:06]} Be7 {[%emt 0:00:11]} 7. Be3 {[%emt 0:00:05]} Nc6 {[%emt 0:00:14]} 8. Qd2 {[%emt 0:00:05]} Be6 {[%emt 0:00:09]} 9. O-O-O {[%emt 0:00:14]} Qd7 {[%emt 0:00:10]} 10. Kb1 {[%emt 0:00:06]} Bf6 {[%emt 0:00:15]} 11. h3 {[%emt 0:00:44] White has an edge.} a6 {[%emt 0:10:53]} 12. Ng5 {[%emt 0:00:54]} Bf5 {[%emt 0:02:22]} 13. g4 {[%emt 0:04:19]} Bg6 {[%emt 0:04:57]} 14. Bg2 {[%emt 0:00:33]} O-O-O {[%emt 0:10:47]} 15. h4 {[%emt 0:14:21]} (15. Ne4 $14) 15... h5 $132 {[%emt 0:19:13][%mdl 2048] Black is not keeping still} (15... Qxg4 $2 16. Bh3 h5 17. f3 $18 (17. Bxg4+ hxg4 18. Qe2 Kb8 $18) (17. Bxg4+ hxg4 18. Qe2 Kb8 $18)) 16. gxh5 {[%emt 0:05:37]} Rxh5 {[%emt 0:00:15]} 17. Bf3 {[%emt 0:18:02]} Rhh8 $1 {[%emt 0:00:04]} 18. h5 {[%emt 0:01:15]} Bf5 {[%emt 0:03:02]} 19. Bxc6 {[%emt 0:03:19]} bxc6 {[%emt 0:01:10]} 20. Qe2 {[%emt 0:03:38]} Kb7 {[%emt 0:04:29]} 21. Rh4 {[%emt 0:03:09][%cal Bh1h4,Bh4a4,Ba4a3,Ba3b3][%mdl 32] Inhibits Bg4.} a5 {[%emt 0:12:21] Inhibits Rb4+.} 22. Ra4 {[%emt 0:13:27]} Ra8 {[%emt 0:02:03]} 23. Qf3 {[%emt 0:00:45][%cal Oa4f4]} Rhe8 {[%emt 0:07:24]} 24. Nxf7 {[%emt 0:16:54][%cal Od1g1]} Bxc2+ {[%emt 0:03:56]} 25. Kxc2 {[%emt 0:00:03]} Qxf7 {[%emt 0:00:08]} 26. Ra3 {[%emt 0:01:09] Hoping for Rb3+.} Qc4 {[%emt 0:11:11]} 27. Rb3+ {[%emt 0:01:33]} Ka6 {[%emt 0:00:30]} (27... Kc8 $1 $14) 28. Rd2 $2 {[%emt 0:13:49]} (28. Rxd6 $1 $16 Re4 29. Rd7) 28... d5 29. Rxd5 $2 {[%emt 0:00:00][%mdl 8192]} Re7 $4 {[%emt 0:08:39][%mdl 8192] [#]} (29... cxd5 $19 30. Qd1 Rxe3 31. fxe3 Be7) 30. Rd6 $2 Re4 $16 {[%emt 0:00:00]} 31. Rd7 {[%emt 0:00:00] Really sharp!} Be5 {[%emt 0:00:00]} 32. Qf5 {[%emt 0:00:00] White is more active.} Re8 {[%emt 0:00:00] [#]} (32... Bd6 $1 $14 33. Rxd6 (33. Rxg7 $2 {is the wrong capture.} a4 $19) 33... Rxe3) 33. Rd3 {[%emt 0:00:23]} (33. Ra3 $1 $18 {Rd3 would now be deadly.} a4 34. b4) 33... Bf6 {[%emt 0:01:23]} (33... Bf4 $14) 34. h6 $18 {[%emt 0:00:38]} R4e5 {[%emt 0:00:27]} (34... R4e6 {was necessary.}) 35. Qf3 {[%emt 0:00:43]} Rd5 $2 {[%emt 0:00:38]} (35... R5e7 {is a better defense.} 36. h7 Qe4 37. Qxe4 Rxe4) 36. Rxd5 {[%emt 0:00:20]} cxd5 {[%emt 0:00:05]} 37. hxg7 $2 {[%emt 0:00:41]} (37. Kd2 $18) 37... Bxg7 $16 {[%emt 0:00:28] [#]} 38. Kd2 {[%emt 0:01:13]} (38. a4 $142 $1) 38... Be5 {[%emt 0:00:58]} (38... Bf8 $142) 39. Qh5 {[%emt 0:00:37]} Qc6 {[%emt 0:00:28]} (39... Re6 $16 {might work better.}) 40. Qg4 {[%emt 0:00:44]} Bd6 $2 {[%emt 0:00:25]} (40... Rd8 41. Qf5 Bd6) 41. Qd4 $18 {[%emt 0:30:10]} Ra8 {[%emt 0:30:33] [#] Dodges Qa7+} 42. Rb8 $3 {[%emt 0:00:52][%mdl 512]} Rxb8 {[%emt 0:00:32]} (42... a4 43. b3) 43. Qa7+ {[%emt 0:00:05]} Kb5 {[%emt 0:00:16]} 44. Qxb8+ {[%emt 0:00:05]} Ka6 {[%emt 0:00:23]} 45. Qa7+ {[%emt 0:00:00]} Kb5 {[%emt 0:00:00]} 46. b3 {[%emt 0:00:00][%csl Gb3][%cal Ra2a4]} Ba3 {[%emt 0:00:00]} 47. Ke2 {[%emt 0:00:00] Weighted Error Value: White=0.47/Black=0.80.  Loses game:     	White=1     	---        Missed win:     	White=2     	Black=1      Mistake:       	White=4     	Black=8      Inaccurate:     	White=1     	Black=4      OK:         	White=9     	Black=11     Best:        	White=6     	---        Strong:       	---       	Black=1      Brilliant:      	White=1     	---} 1-0

[Event "Sardinia World Festival-A 2024"]
[Site "Orosei"]
[Date "2024.04.27"]
[Round "1.24"]
[White "Shvedova, Alexandra"]
[Black "Zhalmakhanov, Ramazan"]
[Result "0-1"]
[ECO "C55"]
[WhiteElo "2203"]
[BlackElo "2490"]
[Annotator "TA"]
[PlyCount "58"]
[EventDate "2024.04.26"]
[EventType "swiss"]
[EventCountry "ITA"]
[SourceTitle "playchess.com"]
[Source "ChessBase"]
[SourceQuality "1"]
[TimeControl "40/5400+30:1800+30"]

{[%evp 10,58,43,29,36,35,38,37,66,52,118,77,86,70,102,51,72,28,43,32,38,-50,-36,-45,-43,-64,-60,-107,-87,-304,-291,-263,-171,-439,-445,-687,-687,-681,-681,-652,-360,-995,-995,-964,-962,-1028,-1020,-1013,-1005,-29984,-29985]} 1. e4 {[%emt 0:00:03]} e5 {[%emt 0:00:09]} 2. Nf3 {[%emt 0:00:08]} Nc6 {[%emt 0:00:19]} 3. Bc4 {[%emt 0:00:16]} Nf6 {[%emt 0:00:09]} 4. d3 {[%emt 0:00:07]} h6 {[%emt 0:00:14]} 5. O-O {[%emt 0:01:08]} d6 {[%emt 0:00:43]} 6. c3 {[%emt 0:06:06]} g5 {[%emt 0:00:47][%cal Bg7g5,Bg5g4][%mdl 32]} 7. a4 {[%emt 1:26:12][%cal Ba2a4,Ba4a5][%mdl 32]} g4 8. Ne1 Bg7 {White is slightly better.} 9. f3 Qe7 ({Better is} 9... Ne7 $14) 10. a5 a6 11. b4 {[%emt 0:00:00]} Be6 12. Na3 {[%emt 0:00:00]} (12. Bxe6 $16 Qxe6 13. fxg4) 12... Rd8 {[%cal Ba8d8,Bd8d5,Bd5d3][%mdl 32]} 13. Qa4 {[%emt 0:00:00][%cal Oc4a6] Black must now prevent Bxa6!} O-O (13... d5 $6 14. Bxa6 Bc8 15. Bb5 $18) 14. fxg4 {[%emt 0:00:00]} Nxg4 15. Nf3 {[%emt 0:00:00]} (15. Qb3 $14) 15... d5 $15 16. exd5 {[%emt 0:00:00]} Bxd5 17. Bxd5 {[%emt 0:00:00]} Rxd5 18. h3 {[%emt 0:00:00] [#]} (18. b5 $15 Qc5+ 19. Kh1 Nf2+ (19... Qxc3 20. Qxg4 Qxa1 21. bxc6 $16) 20. Rxf2 Qxf2 21. bxc6 Rxd3 22. Ng1 bxc6 (22... Rxc3 23. cxb7 Qd4 24. Qxd4 $11) 23. Qg4) 18... Rxd3 $1 $17 {[%cal Oe5e4] Hoping for ...e4!} 19. hxg4 $2 {[%emt 0:00:00] Loses the game.} (19. Ne1 $17 Rxc3 20. hxg4) 19... e4 $1 $19 20. Nh2 {[%emt 0:00:00]} (20. Qc2 $2 Bxc3 (20... Rxc3 $2 21. Qe2 $19) 21. Bb2 Nxb4 (21... Bxb2 $2 22. Qxb2 exf3 23. Rxf3 $19) 22. Qxc3 Rxc3 23. Bxc3 Qc5+ (23... exf3 $2 24. Rxf3 Qc5+ 25. Kh1 $19) 24. Bd4 Qd5 $19 (24... Qxa5 $2 25. Nh4 $19)) 20... Bxc3 (20... Rxc3 21. Bb2 $11) 21. Ra2 {[%emt 0:00:00]} (21. Nc4) 21... e3 ({Not} 21... Nxb4 22. Re2 $11) (21... Bxb4 22. Nc2 Bxa5 23. Qc4 $11) 22. Bxe3 {[%emt 0:00:00]} (22. Nb1 $142 e2 (22... Qxb4 23. Nxc3 Rxc3 24. Qxb4 $18) (22... Bxb4 $2 23. Qc2 $19) 23. Nxc3 exf1=Q+ (23... e1=B $2 {is the wrong capture.} 24. Re2 $18) (23... exf1=B $2 24. Nxf1 Rxc3 25. Bxh6 $19) 24. Nxf1 Rxc3 25. Bxh6) 22... Qxe3+ 23. Kh1 {[%emt 0:00:00] White is weak on the dark squares} Qg3 (23... Bxb4 $2 24. Nc2 Qe6 25. Nxb4 Nxb4 26. Rb2 $19) 24. Nc4 {[%emt 0:00:00] Inhibits Be5.} Ne5 25. Raf2 $2 {[%emt 0:00:00] [#]} (25. Nxe5 Bxe5 26. Nf3) 25... Nxg4 26. Nxg4 {[%emt 0:00:00]} Qxg4 27. Qc2 {[%emt 0:00:00]} Qh4+ 28. Kg1 {[%emt 0:00:00]} Qxc4 29. Rf4 {[%emt 0:00:00]} Bd4+ {Weighted Error Value: White=1.07/Black=0.32.  Loses game:     	White=1     	---        Mistake:       	White=5     	Black=1      Inaccurate:     	White=2     	Black=3      OK:         	White=5     	---        Best:        	---       	Black=3      Strong:       	---       	Black=2} 0-1